[Event "Early-Titled-Tuesday-Blitz-August-29-2023"]
[Site "Chess.com"]
[Date "2023.08.29"]
[Round "5"]
[White "Cheer_Down"]
[Black "queen_iryna"]
[Result "1/2-1/2"]
[WhiteElo "2506"]
[BlackElo "2348"]
[TimeControl "180+1"]
[EndTime "8:56:50 PDT"]
[Termination "Game drawn by 50-move rule"]

1. e4 {[%clk 0:03:00.9]} 1... d6 {[%clk 0:03:00.9]} 2. d4 {[%clk 0:03:00.6]}
2... Nf6 {[%clk 0:03:00.9]} 3. Nc3 {[%clk 0:03:00.9]} 3... e5 {[%clk 0:03:01.2]}
4. Nf3 {[%clk 0:03:00.1]} 4... Nbd7 {[%clk 0:03:00]} 5. Bc4 {[%clk 0:02:59.5]}
5... Be7 {[%clk 0:03:00.1]} 6. a4 {[%clk 0:02:59.5]} 6... O-O {[%clk 0:02:59.2]}
7. O-O {[%clk 0:02:58.6]} 7... c6 {[%clk 0:02:58.7]} 8. h3 {[%clk 0:02:57.8]}
8... h6 {[%clk 0:02:59.1]} 9. Re1 {[%clk 0:02:56.7]} 9... Re8 {[%clk 0:02:59.6]}
10. a5 {[%clk 0:02:56.4]} 10... Bf8 {[%clk 0:02:59.3]} 11. Be3 {[%clk
0:02:53.6]} 11... exd4 {[%clk 0:02:57.9]} 12. Bxd4 {[%clk 0:02:53.6]} 12... Qc7
{[%clk 0:02:57.9]} 13. Bf1 {[%clk 0:01:42.3]} 13... Ne5 {[%clk 0:02:57.1]} 14.
Nd2 {[%clk 0:01:40.6]} 14... g5 {[%clk 0:02:53.1]} 15. g3 {[%clk 0:01:34.1]}
15... c5 {[%clk 0:02:43.4]} 16. Be3 {[%clk 0:01:32.6]} 16... Ng6 {[%clk
0:02:37.7]} 17. Bg2 {[%clk 0:01:30.1]} 17... Bd7 {[%clk 0:02:33.8]} 18. Nc4
{[%clk 0:01:26.4]} 18... Bc6 {[%clk 0:02:33.6]} 19. Qd3 {[%clk 0:01:19.5]} 19...
Rad8 {[%clk 0:02:26.5]} 20. Bd2 {[%clk 0:01:16.5]} 20... b5 {[%clk 0:02:07.6]}
21. axb6 {[%clk 0:01:15.5]} 21... axb6 {[%clk 0:02:08.5]} 22. Nd5 {[%clk
0:01:15.6]} 22... Nxd5 {[%clk 0:02:02.3]} 23. exd5 {[%clk 0:01:15.8]} 23... Bb5
{[%clk 0:02:02.3]} 24. Bc3 {[%clk 0:01:10.1]} 24... Rxe1+ {[%clk 0:01:40]} 25.
Rxe1 {[%clk 0:01:09.4]} 25... Ra8 {[%clk 0:01:40.6]} 26. b3 {[%clk 0:01:06.4]}
26... Ra2 {[%clk 0:01:38.7]} 27. Ra1 {[%clk 0:00:50.7]} 27... Rxa1+ {[%clk
0:01:37.8]} 28. Bxa1 {[%clk 0:00:51.3]} 28... Qe7 {[%clk 0:01:35.8]} 29. Qc3
{[%clk 0:00:49.2]} 29... Bxc4 {[%clk 0:01:31.4]} 30. bxc4 {[%clk 0:00:46.6]}
30... Qe5 {[%clk 0:01:22]} 31. Qxe5 {[%clk 0:00:30.5]} 31... Nxe5 {[%clk
0:01:22.9]} 32. Bxe5 {[%clk 0:00:25.6]} 32... dxe5 {[%clk 0:01:23.8]} 33. Be4
{[%clk 0:00:24.6]} 33... Bd6 {[%clk 0:01:23.7]} 34. Kf1 {[%clk 0:00:24.1]} 34...
Kf8 {[%clk 0:01:21.7]} 35. Ke2 {[%clk 0:00:24.4]} 35... Ke7 {[%clk 0:01:21.4]}
36. Kd3 {[%clk 0:00:24.8]} 36... Bc7 {[%clk 0:01:18]} 37. Kc3 {[%clk 0:00:24.2]}
37... Kd6 {[%clk 0:01:18.2]} 38. Kb3 {[%clk 0:00:24.6]} 38... Bd8 {[%clk
0:01:18.4]} 39. Ka4 {[%clk 0:00:25]} 39... h5 {[%clk 0:01:14.5]} 40. Kb5 {[%clk
0:00:22.3]} 40... h4 {[%clk 0:01:13.8]} 41. gxh4 {[%clk 0:00:19.8]} 41... gxh4
{[%clk 0:01:14.7]} 42. Ka6 {[%clk 0:00:19.2]} 42... Bc7 {[%clk 0:01:11]} 43. Kb7
{[%clk 0:00:19.1]} 43... Bd8 {[%clk 0:01:11.1]} 44. Kc8 {[%clk 0:00:19]} 44...
Bg5 {[%clk 0:01:09.1]} 45. Bf5 {[%clk 0:00:15.1]} 45... Bd2 {[%clk 0:01:08.2]}
46. f3 {[%clk 0:00:15.2]} 46... Bg5 {[%clk 0:01:07]} 47. Bh7 {[%clk 0:00:15]}
47... Bf6 {[%clk 0:01:06.1]} 48. Bg8 {[%clk 0:00:14.4]} 48... Bg5 {[%clk
0:01:04.3]} 49. Bxf7 {[%clk 0:00:14.2]} 49... Bf6 {[%clk 0:01:04]} 50. Bg6
{[%clk 0:00:14.3]} 50... Bg5 {[%clk 0:01:03.8]} 51. Bf5 {[%clk 0:00:14.6]} 51...
Bf6 {[%clk 0:01:03.9]} 52. Be4 {[%clk 0:00:14.5]} 52... Bg5 {[%clk 0:01:04]} 53.
Kb7 {[%clk 0:00:14.8]} 53... Bd8 {[%clk 0:01:03.7]} 54. Bf5 {[%clk 0:00:15]}
54... Bc7 {[%clk 0:01:03.9]} 55. Bg4 {[%clk 0:00:14.7]} 55... Bd8 {[%clk
0:01:04]} 56. Kc8 {[%clk 0:00:15]} 56... Bf6 {[%clk 0:01:02.1]} 57. Kb7 {[%clk
0:00:14.4]} 57... Bd8 {[%clk 0:00:59.9]} 58. Ka6 {[%clk 0:00:14.9]} 58... Bc7
{[%clk 0:00:58.4]} 59. Ka7 {[%clk 0:00:15.4]} 59... Bd8 {[%clk 0:00:57.9]} 60.
Ka6 {[%clk 0:00:15.5]} 60... Bc7 {[%clk 0:00:57.7]} 61. Kb5 {[%clk 0:00:16.2]}
61... Bd8 {[%clk 0:00:57.2]} 62. Ka4 {[%clk 0:00:16.9]} 62... Bg5 {[%clk
0:00:56.7]} 63. Kb3 {[%clk 0:00:17.1]} 63... Bf4 {[%clk 0:00:56.5]} 64. Kc3
{[%clk 0:00:17]} 64... Bg3 {[%clk 0:00:56.8]} 65. Kd3 {[%clk 0:00:17.4]} 65...
Bf4 {[%clk 0:00:56.7]} 66. Ke4 {[%clk 0:00:17.9]} 66... Bg3 {[%clk 0:00:56.1]}
67. Kf5 {[%clk 0:00:18.1]} 67... Bf2 {[%clk 0:00:55.7]} 68. Kg5 {[%clk
0:00:15.9]} 68... Be1 {[%clk 0:00:55.5]} 69. Kf5 {[%clk 0:00:15.8]} 69... Bg3
{[%clk 0:00:55.4]} 70. Bh5 {[%clk 0:00:16.2]} 70... Be1 {[%clk 0:00:54.8]} 71.
Kf6 {[%clk 0:00:16.6]} 71... Bg3 {[%clk 0:00:54.5]} 72. Kf7 {[%clk 0:00:17.1]}
72... Bf4 {[%clk 0:00:53.5]} 73. Ke8 {[%clk 0:00:17.2]} 73... Bg5 {[%clk
0:00:53.6]} 74. Kf7 {[%clk 0:00:17.6]} 74... Bf4 {[%clk 0:00:53.4]} 75. Kf6
{[%clk 0:00:18.2]} 75... Be3 {[%clk 0:00:52.7]} 76. Kf5 {[%clk 0:00:18.7]} 76...
Bf4 {[%clk 0:00:51.8]} 77. Kg4 {[%clk 0:00:18.5]} 77... Bg3 {[%clk 0:00:52.1]}
78. Bg6 {[%clk 0:00:19.2]} 78... Bf2 {[%clk 0:00:52.1]} 79. Bf5 {[%clk
0:00:18.7]} 79... Be1 {[%clk 0:00:52]} 80. Bd3 {[%clk 0:00:18.9]} 80... Bf2
{[%clk 0:00:51.9]} 81. Kf5 {[%clk 0:00:19.4]} 81... Be3 {[%clk 0:00:51.1]} 82.
Kf6 {[%clk 0:00:19.1]} 82... Bf4 {[%clk 0:00:50.4]} 83. Kf7 {[%clk 0:00:19.4]}
83... Bg5 {[%clk 0:00:49.3]} 84. Ke8 {[%clk 0:00:20]} 84... Bf6 {[%clk
0:00:49.4]} 85. Be4 {[%clk 0:00:20]} 85... Bg5 {[%clk 0:00:49.2]} 86. Bh7 {[%clk
0:00:19]} 86... Bf6 {[%clk 0:00:48.9]} 87. Kf7 {[%clk 0:00:19.4]} 87... Bg5
{[%clk 0:00:49.1]} 88. Kg6 {[%clk 0:00:19.8]} 88... Bf4 {[%clk 0:00:49.2]} 89.
Kh5 {[%clk 0:00:19.9]} 89... Bg3 {[%clk 0:00:49.1]} 90. Kg5 {[%clk 0:00:20.6]}
90... Bf2 {[%clk 0:00:48.3]} 91. Kg4 {[%clk 0:00:21]} 91... Bg3 {[%clk
0:00:48.3]} 92. Kf5 {[%clk 0:00:21.3]} 92... Bf2 {[%clk 0:00:48.1]} 93. Bg8
{[%clk 0:00:21]} 93... Bg3 {[%clk 0:00:47.9]} 94. Kg5 {[%clk 0:00:21.6]} 94...
Bf2 {[%clk 0:00:47.8]} 95. Kg4 {[%clk 0:00:22.3]} 95... Bg3 {[%clk 0:00:47.7]}
96. Kf5 {[%clk 0:00:23]} 96... Bf2 {[%clk 0:00:47.7]} 97. Ke4 {[%clk 0:00:23.7]}
97... Bg3 {[%clk 0:00:47.6]} 98. Kd3 {[%clk 0:00:24.5]} 98... Bf2 {[%clk
0:00:47.4]} 99. Kc3 {[%clk 0:00:25.2]} 1/2-1/2

[Event "Early-Titled-Tuesday-Blitz-August-29-2023"]
[Site "Chess.com"]
[Date "2023.08.29"]
[Round "5"]
[White "Preobrazhenska_D2011"]
[Black "MusicCityMaster"]
[Result "1-0"]
[WhiteElo "2300"]
[BlackElo "2421"]
[TimeControl "180+1"]
[EndTime "8:56:52 PDT"]
[Termination "Preobrazhenska_D2011 won by checkmate"]

1. e4 {[%clk 0:02:58.7]} 1... c5 {[%clk 0:02:58.9]} 2. Nf3 {[%clk 0:02:57.9]}
2... d6 {[%clk 0:02:59.5]} 3. d4 {[%clk 0:02:57]} 3... cxd4 {[%clk 0:03:00.4]}
4. Nxd4 {[%clk 0:02:57.6]} 4... Nf6 {[%clk 0:03:01]} 5. Nc3 {[%clk 0:02:56.1]}
5... a6 {[%clk 0:03:01.3]} 6. Bg5 {[%clk 0:02:56.6]} 6... e6 {[%clk 0:03:01.5]}
7. f4 {[%clk 0:02:55.7]} 7... Nbd7 {[%clk 0:03:02.1]} 8. Qf3 {[%clk 0:02:50.6]}
8... Qc7 {[%clk 0:03:02.7]} 9. O-O-O {[%clk 0:02:22.5]} 9... b5 {[%clk
0:03:02.7]} 10. g4 {[%clk 0:01:53.8]} 10... Bb7 {[%clk 0:03:02.1]} 11. Bxf6
{[%clk 0:01:50.8]} 11... Nxf6 {[%clk 0:03:01.7]} 12. g5 {[%clk 0:01:49]} 12...
Nd7 {[%clk 0:03:01.7]} 13. Kb1 {[%clk 0:01:27.4]} 13... Be7 {[%clk 0:02:50.1]}
14. Rg1 {[%clk 0:01:16]} 14... b4 {[%clk 0:02:33.4]} 15. Nce2 {[%clk 0:01:15.8]}
15... Rc8 {[%clk 0:02:20.7]} 16. Rc1 {[%clk 0:01:07.3]} 16... Nc5 {[%clk
0:02:11.6]} 17. Ng3 {[%clk 0:01:07.1]} 17... h6 {[%clk 0:01:48.2]} 18. g6 {[%clk
0:00:57]} 18... fxg6 {[%clk 0:01:47.8]} 19. Bh3 {[%clk 0:00:50.4]} 19... Bf6
{[%clk 0:01:21.5]} 20. Nxe6 {[%clk 0:00:40.8]} 20... Nxe6 {[%clk 0:01:18.8]} 21.
Bxe6 {[%clk 0:00:41.7]} 21... Rb8 {[%clk 0:01:15.4]} 22. Qg4 {[%clk 0:00:35.9]}
22... Qe7 {[%clk 0:01:02.9]} 23. Qxg6+ {[%clk 0:00:33.7]} 23... Kd8 {[%clk
0:01:03.3]} 24. Qf7 {[%clk 0:00:25.6]} 24... Qxf7 {[%clk 0:00:59.7]} 25. Bxf7
{[%clk 0:00:26.5]} 25... Rf8 {[%clk 0:00:55.6]} 26. Be6 {[%clk 0:00:24.8]} 26...
Bd4 {[%clk 0:00:53.7]} 27. Rgf1 {[%clk 0:00:22.4]} 27... Be3 {[%clk 0:00:47.5]}
28. Rcd1 {[%clk 0:00:21.9]} 28... Rxf4 {[%clk 0:00:46.9]} 29. Rxd6+ {[%clk
0:00:13.4]} 29... Ke7 {[%clk 0:00:41.6]} 30. Rfd1 {[%clk 0:00:14.3]} 30... Bc5
{[%clk 0:00:32.5]} 31. Rd7+ {[%clk 0:00:05.1]} 31... Kxe6 {[%clk 0:00:32.3]} 32.
Nh5 {[%clk 0:00:05.1]} 32... Bxe4 {[%clk 0:00:29.6]} 33. Nxf4+ {[%clk
0:00:05.1]} 33... Ke5 {[%clk 0:00:28.5]} 34. Nd3+ {[%clk 0:00:04.9]} 34... Bxd3
{[%clk 0:00:27]} 35. R7xd3 {[%clk 0:00:05.8]} 35... a5 {[%clk 0:00:26]} 36. Re1+
{[%clk 0:00:06.6]} 36... Kf4 {[%clk 0:00:25]} 37. Rf1+ {[%clk 0:00:06.3]} 37...
Ke4 {[%clk 0:00:24]} 38. Rd7 {[%clk 0:00:07.2]} 38... g5 {[%clk 0:00:23.1]} 39.
b3 {[%clk 0:00:06.8]} 39... a4 {[%clk 0:00:20.3]} 40. Re1+ {[%clk 0:00:07.4]}
40... Kf5 {[%clk 0:00:19.5]} 41. Rd5+ {[%clk 0:00:07]} 41... Kg4 {[%clk
0:00:19.4]} 42. Rxc5 {[%clk 0:00:07.9]} 42... a3 {[%clk 0:00:19.1]} 43. Rc4+
{[%clk 0:00:08.6]} 43... Kh3 {[%clk 0:00:19.1]} 44. Rf1 {[%clk 0:00:05]} 44...
Kxh2 {[%clk 0:00:18.4]} 45. Rg4 {[%clk 0:00:05.6]} 45... Re8 {[%clk 0:00:14.8]}
46. Kc1 {[%clk 0:00:05.8]} 46... Re2 {[%clk 0:00:14.3]} 47. Rxb4 {[%clk
0:00:06.2]} 47... h5 {[%clk 0:00:13.8]} 48. Rb5 {[%clk 0:00:06.2]} 48... Rg2
{[%clk 0:00:13.6]} 49. Rff5 {[%clk 0:00:05.9]} 49... Rg1+ {[%clk 0:00:11.8]} 50.
Kd2 {[%clk 0:00:06.7]} 50... Rg2+ {[%clk 0:00:12.4]} 51. Kc3 {[%clk 0:00:06.5]}
51... h4 {[%clk 0:00:11.5]} 52. Rxg5 {[%clk 0:00:06.2]} 52... Rf2 {[%clk
0:00:12]} 53. Rh5 {[%clk 0:00:06.5]} 53... h3 {[%clk 0:00:12.4]} 54. Rbg5 {[%clk
0:00:06.2]} 54... Rf3+ {[%clk 0:00:13]} 55. Kb4 {[%clk 0:00:06.6]} 55... Rf2
{[%clk 0:00:13.1]} 56. Kxa3 {[%clk 0:00:06.9]} 56... Rxc2 {[%clk 0:00:13.1]} 57.
Rg7 {[%clk 0:00:07.4]} 57... Rc6 {[%clk 0:00:11.4]} 58. Rgh7 {[%clk 0:00:06.8]}
58... Ra6+ {[%clk 0:00:11.3]} 59. Kb2 {[%clk 0:00:07.4]} 59... Kg2 {[%clk
0:00:11.3]} 60. Rxh3 {[%clk 0:00:07.9]} 60... Rd6 {[%clk 0:00:10]} 61. Rh2+
{[%clk 0:00:08.4]} 61... Kg3 {[%clk 0:00:10.6]} 62. R7h3+ {[%clk 0:00:08.9]}
62... Kg4 {[%clk 0:00:11.2]} 63. Re3 {[%clk 0:00:09.5]} 63... Kf4 {[%clk
0:00:11.5]} 64. Rc3 {[%clk 0:00:09.4]} 64... Ke4 {[%clk 0:00:11.6]} 65. a4
{[%clk 0:00:09.9]} 65... Rb6 {[%clk 0:00:10.2]} 66. Rh4+ {[%clk 0:00:09.3]}
66... Kd5 {[%clk 0:00:10.1]} 67. a5 {[%clk 0:00:09.5]} 67... Rb5 {[%clk
0:00:09.4]} 68. a6 {[%clk 0:00:09.5]} 68... Ra5 {[%clk 0:00:09.4]} 69. Rh5+
{[%clk 0:00:10]} 69... Kd4 {[%clk 0:00:09.3]} 70. Rxa5 {[%clk 0:00:09.9]} 70...
Ke4 {[%clk 0:00:07.9]} 71. a7 {[%clk 0:00:10.2]} 71... Kd4 {[%clk 0:00:08.8]}
72. Rc4+ {[%clk 0:00:09.9]} 72... Kd3 {[%clk 0:00:09.1]} 73. a8=Q {[%clk
0:00:09.8]} 73... Ke3 {[%clk 0:00:10]} 74. Qe4+ {[%clk 0:00:09.7]} 74... Kd2
{[%clk 0:00:10.3]} 75. Rd5# {[%clk 0:00:10.1]} 1-0

[Event "Early-Titled-Tuesday-Blitz-August-29-2023"]
[Site "Chess.com"]
[Date "2023.08.29"]
[Round "5"]
[White "GAZZAN_3000"]
[Black "Kaua18"]
[Result "1/2-1/2"]
[WhiteElo "2671"]
[BlackElo "2500"]
[TimeControl "180+1"]
[EndTime "8:56:56 PDT"]
[Termination "Game drawn - insufficient material"]

1. d4 {[%clk 0:03:00.9]} 1... Nf6 {[%clk 0:02:59.3]} 2. Nf3 {[%clk 0:03:01.3]}
2... e6 {[%clk 0:02:58.6]} 3. c4 {[%clk 0:03:01.1]} 3... d5 {[%clk 0:02:57.7]}
4. g3 {[%clk 0:03:01]} 4... Bd6 {[%clk 0:02:57.3]} 5. Bg2 {[%clk 0:03:00.1]}
5... O-O {[%clk 0:02:57.9]} 6. c5 {[%clk 0:02:57.1]} 6... Be7 {[%clk 0:02:56.6]}
7. O-O {[%clk 0:02:55]} 7... b6 {[%clk 0:02:52.5]} 8. Qc2 {[%clk 0:02:52.7]}
8... bxc5 {[%clk 0:02:44.4]} 9. dxc5 {[%clk 0:02:53.6]} 9... Nc6 {[%clk
0:02:44.3]} 10. a3 {[%clk 0:02:50.4]} 10... a5 {[%clk 0:02:42]} 11. Bf4 {[%clk
0:02:45.8]} 11... Nd7 {[%clk 0:02:23]} 12. Be3 {[%clk 0:02:43.9]} 12... e5
{[%clk 0:02:15.2]} 13. Rd1 {[%clk 0:02:41.9]} 13... d4 {[%clk 0:02:14.1]} 14.
Nxd4 {[%clk 0:02:36.5]} 14... exd4 {[%clk 0:01:55.8]} 15. Bxc6 {[%clk
0:02:30.6]} 15... dxe3 {[%clk 0:01:52.5]} 16. Bxa8 {[%clk 0:02:29.5]} 16...
exf2+ {[%clk 0:01:52.5]} 17. Kxf2 {[%clk 0:02:26.5]} 17... Bxc5+ {[%clk
0:01:50.5]} 18. Kg2 {[%clk 0:02:19.8]} 18... Qg5 {[%clk 0:01:28.8]} 19. Nc3
{[%clk 0:02:11.5]} 19... Qe3 {[%clk 0:01:08.1]} 20. Ne4 {[%clk 0:01:55.2]} 20...
Bb6 {[%clk 0:01:08.1]} 21. Rd3 {[%clk 0:01:46.6]} 21... Qh6 {[%clk 0:01:04.4]}
22. Qc6 {[%clk 0:01:45.1]} 22... Qxc6 {[%clk 0:00:30]} 23. Bxc6 {[%clk 0:01:46]}
23... Ne5 {[%clk 0:00:30.7]} 24. Bd5 {[%clk 0:01:33.6]} 24... Nxd3 {[%clk
0:00:30.8]} 25. exd3 {[%clk 0:01:34.5]} 25... g6 {[%clk 0:00:13.9]} 26. Rf1
{[%clk 0:01:26.6]} 26... Kg7 {[%clk 0:00:14]} 27. Rf6 {[%clk 0:01:24]} 27... Bf5
{[%clk 0:00:13]} 28. Rc6 {[%clk 0:01:22.4]} 28... Rd8 {[%clk 0:00:12.2]} 29. Nf6
{[%clk 0:00:42.8]} 29... Bd4 {[%clk 0:00:08.7]} 30. Rxc7 {[%clk 0:00:42.4]}
30... Bxf6 {[%clk 0:00:08.6]} 31. Rxf7+ {[%clk 0:00:42.2]} 31... Kh6 {[%clk
0:00:09]} 32. Rxf6 {[%clk 0:00:30.3]} 32... Rxd5 {[%clk 0:00:08.9]} 33. Rb6
{[%clk 0:00:30.4]} 33... Rxd3 {[%clk 0:00:08]} 34. h4 {[%clk 0:00:30.6]} 34...
a4 {[%clk 0:00:07.7]} 35. Rb4 {[%clk 0:00:30.1]} 35... Rb3 {[%clk 0:00:05.7]}
36. Rxa4 {[%clk 0:00:13.2]} 36... Rxb2+ {[%clk 0:00:05.8]} 37. Kf3 {[%clk
0:00:13.7]} 37... Rb3+ {[%clk 0:00:06.3]} 38. Kf4 {[%clk 0:00:14.1]} 38... Rb5
{[%clk 0:00:05.8]} 39. g4 {[%clk 0:00:14]} 39... Bd7 {[%clk 0:00:04.9]} 40. Ra7
{[%clk 0:00:13.9]} 40... Rd5 {[%clk 0:00:05.1]} 41. a4 {[%clk 0:00:11.6]} 41...
Kg7 {[%clk 0:00:05.2]} 42. a5 {[%clk 0:00:11.8]} 42... Kf7 {[%clk 0:00:05.3]}
43. a6 {[%clk 0:00:12.2]} 43... Ke7 {[%clk 0:00:05.5]} 44. Rb7 {[%clk
0:00:12.1]} 44... Rd4+ {[%clk 0:00:05.6]} 45. Kf3 {[%clk 0:00:08.5]} 45... Ra4
{[%clk 0:00:05.4]} 46. a7 {[%clk 0:00:08.1]} 46... Kd6 {[%clk 0:00:05.3]} 47.
Ke3 {[%clk 0:00:05.5]} 47... Kc6 {[%clk 0:00:04.5]} 48. Rb8 {[%clk 0:00:04.8]}
48... Rxa7 {[%clk 0:00:04.6]} 49. Rh8 {[%clk 0:00:05.7]} 49... Bxg4 {[%clk
0:00:04.7]} 50. Kf4 {[%clk 0:00:06.4]} 50... Bf5 {[%clk 0:00:05]} 51. Kg5 {[%clk
0:00:07.3]} 51... Kd6 {[%clk 0:00:05.2]} 52. h5 {[%clk 0:00:07.8]} 52... Ke5
{[%clk 0:00:04.8]} 53. h6 {[%clk 0:00:08.2]} 53... Ke4 {[%clk 0:00:03.2]} 54.
Re8+ {[%clk 0:00:08.2]} 54... Kf3 {[%clk 0:00:02.8]} 55. Kf6 {[%clk 0:00:08.3]}
55... Kg4 {[%clk 0:00:02.9]} 56. Re1 {[%clk 0:00:07.9]} 56... Kh4 {[%clk
0:00:02.5]} 57. Rh1+ {[%clk 0:00:07.9]} 57... Bh3 {[%clk 0:00:03.1]} 58. Re1
{[%clk 0:00:08.1]} 58... g5 {[%clk 0:00:03.8]} 59. Ra1 {[%clk 0:00:03.7]} 59...
g4 {[%clk 0:00:04.2]} 60. Rxa7 {[%clk 0:00:03.9]} 60... g3 {[%clk 0:00:04.6]}
61. Ra4+ {[%clk 0:00:02.6]} 61... Bg4 {[%clk 0:00:04.7]} 62. Kg7 {[%clk
0:00:02.5]} 62... g2 {[%clk 0:00:04.3]} 63. Ra1 {[%clk 0:00:03.2]} 63... Bf5
{[%clk 0:00:04.5]} 64. Kf6 {[%clk 0:00:03.5]} 64... Bd3 {[%clk 0:00:03.8]} 65.
Kg7 {[%clk 0:00:03.6]} 65... Bf1 {[%clk 0:00:03.7]} 66. Ra4+ {[%clk 0:00:03.8]}
66... Kh3 {[%clk 0:00:04]} 67. Ra3+ {[%clk 0:00:04.3]} 67... Kh4 {[%clk
0:00:04.2]} 68. Ra4+ {[%clk 0:00:04.7]} 68... Kg5 {[%clk 0:00:04.7]} 69. Ra5+
{[%clk 0:00:04.6]} 69... Kf4 {[%clk 0:00:04.7]} 70. Ra4+ {[%clk 0:00:04.7]}
70... Kf5 {[%clk 0:00:04.8]} 71. Ra5+ {[%clk 0:00:04.9]} 71... Kf4 {[%clk
0:00:04.1]} 72. Ra4+ {[%clk 0:00:05.2]} 72... Kf3 {[%clk 0:00:04.5]} 73. Ra3+
{[%clk 0:00:05.2]} 73... Ke4 {[%clk 0:00:04.9]} 74. Rg3 {[%clk 0:00:05]} 74...
Kf4 {[%clk 0:00:05.5]} 75. Rxg2 {[%clk 0:00:03.4]} 75... Bxg2 {[%clk 0:00:06.4]}
76. Kxh7 {[%clk 0:00:03.7]} 76... Be4+ {[%clk 0:00:06]} 77. Kg7 {[%clk
0:00:04.6]} 77... Kg5 {[%clk 0:00:06.2]} 78. h7 {[%clk 0:00:05]} 78... Bxh7
{[%clk 0:00:06.5]} 1/2-1/2

[Event "Early-Titled-Tuesday-Blitz-August-29-2023"]
[Site "Chess.com"]
[Date "2023.08.29"]
[Round "5"]
[White "OparinGrigoriy"]
[Black "tptagain"]
[Result "1/2-1/2"]
[WhiteElo "2974"]
[BlackElo "2881"]
[TimeControl "180+1"]
[EndTime "8:57:04 PDT"]
[Termination "Game drawn - insufficient material"]

1. Nf3 {[%clk 0:03:00.9]} 1... d5 {[%clk 0:02:57.7]} 2. e3 {[%clk 0:03:00.9]}
2... c6 {[%clk 0:02:57.5]} 3. c4 {[%clk 0:03:01.5]} 3... e6 {[%clk 0:02:57.2]}
4. b3 {[%clk 0:03:00.8]} 4... Nf6 {[%clk 0:02:55.8]} 5. Bb2 {[%clk 0:03:01.4]}
5... Be7 {[%clk 0:02:55.5]} 6. Rg1 {[%clk 0:02:58.9]} 6... O-O {[%clk
0:02:48.6]} 7. g4 {[%clk 0:02:59.5]} 7... c5 {[%clk 0:02:44.7]} 8. g5 {[%clk
0:02:56.2]} 8... Ne4 {[%clk 0:02:44.5]} 9. h4 {[%clk 0:02:56.8]} 9... Nc6 {[%clk
0:02:40.4]} 10. d3 {[%clk 0:02:54.7]} 10... Qa5+ {[%clk 0:02:39.9]} 11. Nbd2
{[%clk 0:02:49.8]} 11... Nxd2 {[%clk 0:02:25.8]} 12. Qxd2 {[%clk 0:02:49.2]}
12... Qxd2+ {[%clk 0:02:24.6]} 13. Nxd2 {[%clk 0:02:45.9]} 13... Rd8 {[%clk
0:02:16.1]} 14. cxd5 {[%clk 0:02:40]} 14... exd5 {[%clk 0:02:15.1]} 15. Rc1
{[%clk 0:02:33.9]} 15... Bf5 {[%clk 0:02:05.4]} 16. a3 {[%clk 0:02:31.2]} 16...
a5 {[%clk 0:02:01.6]} 17. e4 {[%clk 0:02:23.1]} 17... Be6 {[%clk 0:02:01]} 18.
f4 {[%clk 0:02:22.5]} 18... g6 {[%clk 0:01:50.4]} 19. h5 {[%clk 0:02:07.2]}
19... dxe4 {[%clk 0:01:29.2]} 20. dxe4 {[%clk 0:02:03]} 20... a4 {[%clk
0:01:21.7]} 21. hxg6 {[%clk 0:02:03]} 21... hxg6 {[%clk 0:01:21.6]} 22. bxa4
{[%clk 0:01:47.8]} 22... Nd4 {[%clk 0:01:10.2]} 23. Bb5 {[%clk 0:01:38]} 23...
Bf8 {[%clk 0:00:59.9]} 24. Rg3 {[%clk 0:01:27.3]} 24... b6 {[%clk 0:00:43.2]}
25. Nc4 {[%clk 0:01:17.4]} 25... Nxb5 {[%clk 0:00:30]} 26. axb5 {[%clk
0:01:18.3]} 26... Ra4 {[%clk 0:00:26.8]} 27. Nd2 {[%clk 0:01:14.8]} 27... Bg7
{[%clk 0:00:21.3]} 28. Bxg7 {[%clk 0:01:10.1]} 28... Kxg7 {[%clk 0:00:22.2]} 29.
Rcc3 {[%clk 0:01:05]} 29... Ra5 {[%clk 0:00:20.9]} 30. Rgd3 {[%clk 0:00:59.9]}
30... Rh8 {[%clk 0:00:21.2]} 31. Rf3 {[%clk 0:00:54.2]} 31... Rh1+ {[%clk
0:00:19.3]} 32. Kf2 {[%clk 0:00:52.9]} 32... Rxb5 {[%clk 0:00:19.6]} 33. f5
{[%clk 0:00:53]} 33... gxf5 {[%clk 0:00:20.5]} 34. exf5 {[%clk 0:00:53.9]} 34...
Bd5 {[%clk 0:00:21.2]} 35. Rh3 {[%clk 0:00:52.8]} 35... Rxh3 {[%clk 0:00:18.6]}
36. Rxh3 {[%clk 0:00:52.5]} 36... Rb2 {[%clk 0:00:18.8]} 37. Ke1 {[%clk
0:00:46.8]} 37... Bb7 {[%clk 0:00:17]} 38. Re3 {[%clk 0:00:40.3]} 38... Ra2
{[%clk 0:00:12.6]} 39. Re7 {[%clk 0:00:39.6]} 39... Bd5 {[%clk 0:00:12]} 40. Rd7
{[%clk 0:00:37.5]} 40... Bc6 {[%clk 0:00:12.3]} 41. Rd6 {[%clk 0:00:33.3]} 41...
Bg2 {[%clk 0:00:10.6]} 42. Nc4 {[%clk 0:00:28.7]} 42... b5 {[%clk 0:00:10]} 43.
Ne5 {[%clk 0:00:29]} 43... Rxa3 {[%clk 0:00:09.3]} 44. f6+ {[%clk 0:00:28.9]}
44... Kh7 {[%clk 0:00:08.4]} 45. Kf2 {[%clk 0:00:29.5]} 45... Bh3 {[%clk
0:00:04.8]} 46. g6+ {[%clk 0:00:08.6]} 46... fxg6 {[%clk 0:00:03]} 47. f7 {[%clk
0:00:09.1]} 47... Ra8 {[%clk 0:00:03.3]} 48. Rxg6 {[%clk 0:00:08.4]} 48... Rf8
{[%clk 0:00:02.6]} 49. Rc6 {[%clk 0:00:04.1]} 49... Kg7 {[%clk 0:00:02.5]} 50.
Ke3 {[%clk 0:00:04.4]} 50... c4 {[%clk 0:00:02.3]} 51. Rg6+ {[%clk 0:00:04.2]}
51... Kh7 {[%clk 0:00:02.6]} 52. Rb6 {[%clk 0:00:04.6]} 52... Bf5 {[%clk
0:00:02.7]} 53. Kf4 {[%clk 0:00:03.9]} 53... Bd3 {[%clk 0:00:02.7]} 54. Kg5
{[%clk 0:00:04]} 54... Kg7 {[%clk 0:00:03]} 55. Rxb5 {[%clk 0:00:03.8]} 55...
Rxf7 {[%clk 0:00:03.5]} 56. Nxf7 {[%clk 0:00:03.7]} 56... Kxf7 {[%clk
0:00:04.4]} 57. Rc5 {[%clk 0:00:04.5]} 57... Ke6 {[%clk 0:00:05.3]} 58. Kf4
{[%clk 0:00:04.9]} 58... Kd6 {[%clk 0:00:05.7]} 59. Rc8 {[%clk 0:00:04.3]} 59...
Kd5 {[%clk 0:00:06.1]} 60. Ke3 {[%clk 0:00:04.7]} 60... Bf5 {[%clk 0:00:06.2]}
61. Rd8+ {[%clk 0:00:04.2]} 61... Kc5 {[%clk 0:00:06.7]} 62. Kd2 {[%clk
0:00:04.9]} 62... Bd3 {[%clk 0:00:04.8]} 63. Kc3 {[%clk 0:00:04.3]} 63... Kb5
{[%clk 0:00:05.4]} 64. Rh8 {[%clk 0:00:04.9]} 64... Kc5 {[%clk 0:00:05.8]} 65.
Rh5+ {[%clk 0:00:05.6]} 65... Kd6 {[%clk 0:00:06.5]} 66. Kd4 {[%clk 0:00:06.5]}
66... Ke6 {[%clk 0:00:07.2]} 67. Re5+ {[%clk 0:00:06.8]} 67... Kf6 {[%clk
0:00:07.7]} 68. Re1 {[%clk 0:00:07.2]} 68... Kf5 {[%clk 0:00:07.9]} 69. Re8
{[%clk 0:00:07.8]} 69... Kf6 {[%clk 0:00:08.4]} 70. Rf8+ {[%clk 0:00:08.1]}
70... Ke6 {[%clk 0:00:08.8]} 71. Rh8 {[%clk 0:00:08.5]} 71... Kf6 {[%clk
0:00:09.2]} 72. Rh5 {[%clk 0:00:08.8]} 72... Ke6 {[%clk 0:00:09.6]} 73. Rd5
{[%clk 0:00:09]} 73... Kf6 {[%clk 0:00:10.1]} 74. Re5 {[%clk 0:00:09.4]} 74...
Kf7 {[%clk 0:00:10.2]} 75. Kd5 {[%clk 0:00:09]} 75... Kf6 {[%clk 0:00:10.6]} 76.
Kd6 {[%clk 0:00:08.9]} 76... c3 {[%clk 0:00:09.2]} 77. Rc5 {[%clk 0:00:09.2]}
77... c2 {[%clk 0:00:09.3]} 78. Kd5 {[%clk 0:00:09.6]} 78... Bg6 {[%clk
0:00:08.7]} 79. Kd4 {[%clk 0:00:09.8]} 79... Bf5 {[%clk 0:00:08.6]} 80. Ke3
{[%clk 0:00:10.2]} 80... Bg6 {[%clk 0:00:08.9]} 81. Kf4 {[%clk 0:00:10.8]} 81...
Bd3 {[%clk 0:00:09.2]} 82. Rc3 {[%clk 0:00:10.8]} 82... Ke6 {[%clk 0:00:09]} 83.
Ke3 {[%clk 0:00:11.2]} 83... Bg6 {[%clk 0:00:09.2]} 84. Kd4 {[%clk 0:00:11.6]}
84... Kd6 {[%clk 0:00:09.4]} 85. Rxc2 {[%clk 0:00:12.1]} 85... Bxc2 {[%clk
0:00:09]} 1/2-1/2